Cogmind - Beta 12 @@@ ROGUE MODE // 2023.08.27 @ 01:18:57 Player: Hermelin Result: Destroyed by S-10 Pest with Light Assault Rifle Performance ------------- Evolutions (0) 0 Regions Visited (2) 400 Robots Destroyed (9) 45 Value Destroyed (227) 227 Prototype IDs (0) 0 Alien Tech Used (0) 0 Bonus (0) 0 TOTAL SCORE: 672 Bonus ------- None Cogmind --------- Core Integrity 0/250 Matter 300/300 Energy 249/250 System Corruption 0% Temperature Cool (0) Movement Rolling (190) Ox6 Location -10/Mines Parts ------- > --- POWER (1) -------- Ion Engine > --- PROPULSION (2) --- Light Treads Compact Wheel > --- UTILITY (2) ------ Large Storage Unit Huge Storage Unit > --- WEAPON (2) ------- Medium Laser > --- INVENTORY (25) --- Ion Engine Ion Engine Light Treads Hover Unit Hover Unit Hover Unit Hover Unit Hover Unit Hover Unit Hover Unit Hover Unit Hover Unit Hover Unit Hover Unit Hover Unit Medium Storage Unit Large Storage Unit Huge Storage Unit Medium Matter Pod (100) Structural Scanner Light Armor Plating EM Pulse Gun Medium Laser Grenade Launcher Grenade Launcher Peak State ------------ > --- POWER ------------ Light Ion Engine > --- PROPULSION ------- Compact Wheel Compact Wheel > --- UTILITY ---------- Small Storage Unit Huge Storage Unit > --- WEAPON ----------- EM Pulse Gun Medium Laser > --- INVENTORY -------- Ion Engine Light Treads Light Treads Aluminum Leg Aluminum Leg Hover Unit Hover Unit Hover Unit Hover Unit Hover Unit Hover Unit Hover Unit Hover Unit Hover Unit Medium Storage Unit Huge Storage Unit Medium Matter Pod EM Pulse Gun Medium Laser Medium Laser [Rating: 9] Favorites ----------- Power Ion Engine Engine Ion Engine Propulsion Compact Wheel Treads Light Treads Wheel Compact Wheel Utility Huge Storage Unit Storage Huge Storage Unit Weapon Medium Laser Energy Gun Medium Laser Build | -11 -10 -10 ------- Run | Jun Mat Min Slots Evolved . | . . . Power . | . . . Propulsion . | . . . Utility . | . . . Weapon . | . . . Parts Attached 14 | 5 9 . Power 2 | 1 1 . Engine 2 | 1 1 . Core . | . . . Reactor . | . . . Propulsion 5 | 2 3 . Treads 3 | 1 2 . Leg . | . . . Wheel 2 | 1 1 . Hover . | . . . Flight . | . . . Utility 4 | 1 3 . Device . | . . . Storage 4 | 1 3 . Processor . | . . . Hackware . | . . . Protection . | . . . Artifact . | . . . Weapon 3 | 1 2 . Energy Gun 3 | 1 2 . Energy Cannon . | . . . Ballistic Gun . | . . . Ballistic Cannon . | . . . Launcher . | . . . Special Weapon . | . . . Impact Weapon . | . . . Slashing Weapon . | . . . Piercing Weapon . | . . . Special Melee Weapon . | . . . Unidentified Prototypes . | . . . Parts Lost 4 | . 4 . Power 1 | . 1 . Propulsion 1 | . 1 . Utility . | . . . Weapon 2 | . 2 . Highest Loss Streak 4 | . 4 . To Critical Strikes . | . . . Average Slot Usage (%) 87 | . 87 85 Engine 13 | . 13 14 Treads 9 | . 9 14 Wheel 17 | . 17 14 Storage 27 | . 27 28 Energy Gun 17 | . 17 14 Naked Turns . | . . . Heaviest Build 107 | 10 107 107 Greatest Support 32 | 20 32 16 Greatest Overweight (x) 6 | . 6 6 Average Overweight (x) 3 | . 3 6 Largest Inventory Capacity 25 | 8 25 25 Average Capacity 21 | 7 23 25 Most Carried 25 | 8 25 25 Average Carried 18 | 5 20 25 Final Capacity 25 | 8 25 25 Final Carried 25 | 7 25 25 Class Distribution -------------------- 100% | Mutant Dominant Class ---------------- Mutant | -10/Materials Mutant | -10/Mines Resources | -11 -10 -10 ----------- Run | Jun Mat Min Matter Collected 420 | 250 170 . Remotely . | . . . Salvage Created 420 | 60 360 . Parts 10 | 1 9 . Haulers Intercepted 2 | . 2 . Recyclers Shooed . | . . . Parts Field Recycled . | . . . Retrieved Matter . | . . . Parts Self-Destructed . | . . . Prevented . | . . . Kills | -11 -10 -10 ------- Run | Jun Mat Min Combat Hostiles Destroyed 6 | . 6 . Guns 5 | . 5 . Classes Destroyed 3 | 1 2 . Hauler 2 | . 2 . Recycler 1 | 1 . . Grunt 6 | . 6 . Best Kill Streak 3 | 1 3 . Combat Bots Only 3 | . 3 . Max Kills in Single Turn 1 | 1 1 . Gunslinging . | . . . Exploded . | . . . Melee . | . . . Uniques/NPCs Destroyed . | . . . Combat | -11 -10 -10 -------- Run | Jun Mat Min Damage Taken 772 | . 762 10 Core 255 | . 245 10 Absorbed by Shields . | . . . Core Remaining (%) 100 | 100 . . Volleys Fired 75 | 9 66 . Largest 2 | 1 2 . Hottest 90 | 50 90 . Shots Fired 83 | 9 74 . Gun 83 | 9 74 . Cannon . | . . . Launcher . | . . . Special . | . . . Kinetic . | . . . Thermal 73 | 9 64 . Explosive . | . . . Electromagnetic 10 | . 10 . Robot Hit Streak 14 | 3 14 . Robot Miss Streak 4 | 1 4 . Penetration Max . | . . . Secondary Targets . | . . . Shots Hit Robots 54 | 6 48 . Core Hits 17 | 2 15 . Critical Kills . | . . . Critical Parts Destroyed . | . . . Critical Strikes 6 | . 6 . Burn 6 | . 6 . Melee Attacks . | . . . Impact . | . . . Slashing . | . . . Piercing . | . . . Sneak Attacks . | . . . Combat Hostiles . | . . . Follow-up Attacks . | . . . Damage Inflicted 696 | 75 621 . Guns 696 | 75 621 . Cannons . | . . . Explosions . | . . . Melee . | . . . Ramming . | . . . Kinetic . | . . . Thermal 630 | 75 555 . Explosive . | . . . Electromagnetic 66 | . 66 . Impact . | . . . Slashing . | . . . Piercing . | . . . Highest Corruption . | . . . Average Corruption . | . . . Corruption Purged . | . . . Corruption Blocked . | . . . Overload Shots . | . . . Overflow Damage . | . . . Projectiles . | . . . Explosions . | . . . Melee . | . . . Knockbacks . | . . . Impact . | . . . Kinetic . | . . . Secondary . | . . . Self-Inflicted Damage . | . . . Shots . | . . . Rammed . | . . . Targets Rammed . | . . . Kicked . | . . . Crushed . | . . . Highest Temperature 437 | 50 437 . Average Temperature 195 | 23 215 . Received Heat Transfer 477 | . 477 . Effects 9 | . 9 . Shutdowns 2 | . 2 . Energy Bleed 4 | . 4 . Interference 1 | . 1 . Damage (minor) 2 | . 2 . Siege Activations . | . . . Robots Corrupted . | . . . Combat Hostiles . | . . . Parts Fried . | . . . Impact Corruptions . | . . . Robots Melted 2 | . 2 . Combat Hostiles 1 | . 1 . Parts Melted 5 | 1 4 . Heat Transferred 2294 | 222 2072 . Parts Sabotaged . | . . . Parts Stolen . | . . . Parts Stripped . | . . . Power Chain Reactions . | . . . Missiles Intercepted . | . . . Alert | -11 -10 -10 ------- Run | Jun Mat Min Peak Influence 214 | 5 214 . Initial 3 | . 3 . Average 47 | 1 57 . Maximum Alert Level 1 | . 1 . Low Security (%) 95 | 100 94 100 Level 1 4 | . 5 . Level 2 . | . . . Level 3 . | . . . Level 4 . | . . . Level 5 . | . . . High Security . | . . . Max Security . | . . . Squads Dispatched 1 | . 1 . Investigation 1 | . 1 . Extermination . | . . . Reinforcement . | . . . Assault . | . . . Garrison . | . . . Intercept . | . . . Searches Triggered . | . . . Construction Impeded . | . . . Haulers Reinforced . | . . . Active Scanning Responses . | . . . Cargo Convoy Interrupts . | . . . Stealth | -11 -10 -10 --------- Run | Jun Mat Min Distress Signals 2 | . 2 . Communications Jammed . | . . . Distress Signals . | . . . Times Spotted 18 | . 15 3 Peak Tracking Total 5 | . 5 . Tactical Retreats 2 | . 2 . Traps | -11 -10 -10 ------- Run | Jun Mat Min Traps Triggered . | . . . Indirectly . | . . . Trap Hack Attempts . | . . . Triggered . | . . . Disarmed . | . . . Reprogrammed . | . . . Reused . | . . . Traps Extracted . | . . . Installed . | . . . Triggered . | . . . Machines | -11 -10 -10 ---------- Run | Jun Mat Min Machines Disabled . | . . . Max in Single Turn . | . . . Machines Repaired . | . . . Machines Sabotaged . | . . . Overloaded Fab Kills . | . . . Hacking | -11 -10 -10 --------- Run | Jun Mat Min Machines Accessed 4 | . 4 . Terminals 3 | . 3 . Fabricators . | . . . Repair Stations . | . . . Recycling Units 1 | . 1 . Scanalyzers . | . . . Garrison Access . | . . . Total Hacks 17 | . 17 . Successful 6 | . 6 . Failed 11 | . 11 . Catastrophic 1 | . 1 . Database Lockouts . | . . . Manual 16 | . 16 . Terminals 13 | . 13 . Fabricators . | . . . Repair Stations . | . . . Recycling Units 4 | . 4 . Scanalyzers . | . . . Garrison Access . | . . . Terminal Hacks 1 | . 1 . Robot Analysis 1 | . 1 . Fabricator Hacks . | . . . Repair Station Hacks . | . . . Recycling Unit Hacks 1 | . 1 . Report Inventory 1 | . 1 . Scanalyzer . | . . . Garrison Access Hacks . | . . . Unauthorized Hacks 4 | . 4 . Terminals 2 | . 2 . Track 2 | . 2 . Fabricators . | . . . Repair Stations . | . . . Recycling Units 2 | . 2 . Monitor 1 | . 1 . Tunnel 1 | . 1 . Scanalyzers . | . . . Garrison Access . | . . . Data Cores Recovered . | . . . Used . | . . . Hacking Detections 3 | . 3 . Full Trace Events . | . . . Feedback Events . | . . . Feedback Blocked . | . . . Robot Schematics Acquired . | . . . Robots Built . | . . . Authchips . | . . . Time . | . . . Total Robot Build Rating . | . . . Part Schematics Acquired . | . . . Parts Built . | . . . Authchips . | . . . Time . | . . . Total Part Build Rating . | . . . Parts Repaired . | . . . Time . | . . . Parts Recycled . | . . . Recycled Matter . | . . . Retrieved Matter . | . . . Retrieved Components . | . . . Parts Scanalyzed . | . . . Part Schematics Acquired . | . . . Parts Damaged . | . . . Bothacking | -11 -10 -10 ------------ Run | Jun Mat Min Used RIF Installer . | . . . Robots Hacked . | . . . Non-combat . | . . . Combat . | . . . Robot Hacks Applied . | . . . Relay Couplers Released . | . . . Fabnet Peak Effective % . | . . . Robots Rewired . | . . . Allies Hacked . | . . . Hacks Repelled . | . . . Allies | -11 -10 -10 -------- Run | Jun Mat Min Total Allies . | . . . Largest Group . | . . . Highest-Rated Group . | . . . Highest-Rated Ally . | . . . Total Orders . | . . . Ally Attacks . | . . . Total Damage . | . . . Kills . | . . . Allies Corrupted . | . . . Allies Melted . | . . . Intel | -11 -10 -10 ------- Run | Jun Mat Min Robot Analysis Total 1 | . 1 . Derelict Logs Recovered . | . . . Drone Launches . | . . . Drone Recoveries . | . . . Exploration | -11 -10 -10 ------------- Run | Jun Mat Min Turns Passed 990 | 137 816 37 Spaces Moved 468 | 67 381 20 Core 2 | 2 . . Treads 87 | 64 23 . Legs . | . . . Wheels 379 | 1 358 20 Hover . | . . . Flight . | . . . Fastest Speed 50 | 50 115 190 Average Speed 162 | 155 162 190 Slowest Speed 190 | 160 190 190 Overloaded Moves . | . . . Propulsion Burnouts . | . . . Robots Hopped . | . . . Cave-ins Triggered . | . . . Exploration Rate (%) 21 | 4 51 9 Regions Visited 2 Branch Regions 1 Pre-discovered Areas 1 | . 1 . Known Exits Taken . | . . . Unknown Exits Taken 2 | 1 1 . Scrap Searched . | . . . Spaces Dug . | . . . Terrain Destroyed . | . . . Melee . | . . . Projectile . | . . . AOE . | . . . Terrain Rammed . | . . . Walls Destroyed . | . . . Machines Disabled . | . . . Actions | -11 -10 -10 --------- Run | Jun Mat Min Total 613 | 89 504 20 Wait 20 | 1 19 . Move 466 | 66 380 20 Hop . | . . . Pick Up 32 | 8 24 . Fast Attach 6 | 4 2 . Attach 4 | 1 3 . Detach . | . . . Swap 4 | . 4 . Drop 6 | . 6 . Fire 75 | 9 66 . Melee . | . . . Ram . | . . . Kick . | . . . Crush . | . . . Escape Stasis . | . . . Rewire . | . . . Trap . | . . . Miscellaneous . | . . . Route ------- -11/Junkyard -10/Materials (discovered 3 exits: [*Mat] / [*Min x2]) -10/Mines History --------- Turn | Location | Event 2 | -11/Junkyard | Met Revision 17 39 | -11/Junkyard | Discovered new exit (range 16) 138 | -11/Junkyard | Entered Materials 238 | -10/Materials | Discovered new exit (range 9) 305 | -10/Materials | Build established: Mutant 448 | -10/Materials | Core integrity fell below 50% 489 | -10/Materials | Core integrity fell below 20% 490 | -10/Materials | Lost 4 parts (1p1n2w) 628 | -10/Materials | Discovered new exit (range 7) 731 | -10/Materials | Discovered new exit (range 5) 954 | -10/Materials | Entered Mines 991 | -10/Mines | Destroyed by S-10 Pest with Light Assault Rifle Last Messages --------------- 00731_ EXIT=FOUND 00811_ Connecting with Terminal... 00817_ Dropped Lgt. Treads. 00862_ Acquired 10 matter. 00901_ W-16 Scout sends out distress signal. 00908_ G-34 Mercenary suffers critical hit (Burn). 00913_ Material Compactor disabled. 00914_ G-34 Mercenary suffers critical hit (Burn). 00914_ G-34 Mercenary overheating. 00916_ Melted Heat Sink. 00916_ G-34 Mercenary overheating. 00917_ G-34 Mercenary critical meltdown. 00927_ Critical hit (Burn: +37). 00936_ R-06 Scavenger collects Aluminum Leg. 00945_ G-47 Trooper heat spikes uncontrollably. 00946_ G-47 Trooper heat damages Particle Gun, Aluminum Leg, Aluminum Leg, Lgt. Nuclear Core. LOCATION=UNKNOWN GOAL=ESCAPE Something is scanning the area. Map ----- +----------------------------------------------------+ | | | | | | | | | | | | | | | | | | | | | | | | | | | ???????????????????????????????????????????? | | ???????????????????????????????????????????? | | ????????????????????????????????#??????????? | | ???????????????????????????????# ??????????? | | ??????????????????????????????# ???????????? | | ????????????????????????????## ????????????? | | ????????????????????????#### ?????????????? | | ???????????????????????## ss?????????????? | | ??????????????????????## s??????????????? | | ??????????????????????# ???????????????? | | ?????????????????????## #####???????????? | | ????????????????# ### #???????????? | | ????????????????# @ #???????????? | | ????????????????# ### #???????????? | | ????????????????## ### ##?# ######??????? | | ??????????????????????###???# ## ##?????? | | ????????????????????????????# ####??? | | ????????????????????????????# ##?? | | ????????????????????????????##### ##? | | ????????????????????????????????## #? | | ?????????????????????????????????# #? | | ?????????????????????????????????# ##? | | ?????????????????????????????????# ###?? | | ????????????????????????????????## ##???? | | ????????????????????????????????# ##????? | | ????????????????????????????????# #?????? | | ????????????????????????????????# ##????? | | ????????????????????????????????## ##???? | | ?????????????????????????????????# #???? | | ?????????????????????????????????# #???? | | ?????????????????????????????????## ##???? | | ??????????????????????????????????#####????? | | ???????????????????????????????????????????? | | ???????????????????????????????????????????? | | ???????????????????????????????????????????? | | ???????????????????????????????????????????? | | ???????????????????????????????????????????? | +----------------------------------------------------+ Best States ------------- Heat Dissipation 25 Energy Generation 10 Energy Capacity 250 Matter Stores 300 Matter Capacity 300 Sight Range 16 Terrain Scan Density 10 Evasion (%) 40 Recoil Reduction 1 Item Schematics ----------------- None Robot Schematics ------------------ None Fabricated ------------ Nothing Alien Tech Used ----------------- None Achievements -------------- None Challenges ------------ None Game ------ Seed LatentReinforcedAmplifier Manual? 0 Play Time 00:11:13 Cumulative 455.2 hours Start 2023.05.08 @ 16:22:51 End 2023.08.27 @ 01:18:57 Sessions 2 Manual Loads 0 Difficulty Rogue Special Mode None Game No. 180 Rogue 177 Adventurer 3 Explorer 0 Win Type - Total 8 Types 5/1/0/1/0/1/0/0/0 Lore% 84 Gallery% 87 Achievement% 78 Wizard Run 0 Options --------- ASCII 0 Keyboard 0 Movement Numpad Keybinds 0 Fullscreen 1 Font 18/SmallcapsGlow Map View 76x50 Tactical HUD 1 Map Filters NONE Filters NONE Steam 1 RUN: d4533728-921f-4717-a367-d0f7ce5f0554